[Event "*** Titled Tuesday Blitz"]
[Site "Chess.com"]
[Date "2020.12.29"]
[Round "6"]
[White "beto-betun"]
[Black "theturtlemoves"]
[Result "0-1"]
[WhiteElo "2184"]
[BlackElo "2359"]
[TimeControl "180+1"]
[EndTime "11:07:08 PST"]
[Termination "theturtlemoves won by resignation"]

1. d4 {[%clk 0:03:00.9]} 1... d5 {[%clk 0:02:59.9]} 2. Nf3 {[%clk 0:03:01]} 2...
e6 {[%clk 0:02:59.5]} 3. g3 {[%clk 0:03:01]} 3... b6 {[%clk 0:02:57.4]} 4. Bg2
{[%clk 0:03:01]} 4... Bb7 {[%clk 0:02:57.9]} 5. O-O {[%clk 0:03:01]} 5... Nf6
{[%clk 0:02:44.6]} 6. c4 {[%clk 0:03:01]} 6... dxc4 {[%clk 0:02:43.9]} 7. Nbd2
{[%clk 0:02:57.4]} 7... c5 {[%clk 0:02:33.7]} 8. Nxc4 {[%clk 0:02:51.9]} 8...
cxd4 {[%clk 0:02:32.5]} 9. Nxd4 {[%clk 0:02:52.3]} 9... Bxg2 {[%clk 0:02:30.9]}
10. Qa4+ {[%clk 0:02:07.8]} 10... Qd7 {[%clk 0:01:49.7]} 11. Qxd7+ {[%clk
0:02:06]} 11... Nbxd7 {[%clk 0:01:49.2]} 12. Kxg2 {[%clk 0:02:06.2]} 12... Rc8
{[%clk 0:01:44.3]} 13. b3 {[%clk 0:02:03.7]} 13... a6 {[%clk 0:01:36.7]} 14. Rd1
{[%clk 0:01:58.2]} 14... Bc5 {[%clk 0:01:20.6]} 15. Bf4 {[%clk 0:01:47.6]} 15...
Nd5 {[%clk 0:00:48.2]} 16. Nd6+ {[%clk 0:01:40.6]} 16... Bxd6 {[%clk 0:00:47.8]}
17. Bxd6 {[%clk 0:01:41.5]} 17... h5 {[%clk 0:00:34]} 18. Rac1 {[%clk
0:01:40.3]} 18... Kd8 {[%clk 0:00:31.4]} 19. Nc6+ {[%clk 0:01:22.2]} 19... Rxc6
{[%clk 0:00:29.1]} 20. Rxc6 {[%clk 0:01:22.7]} 20... h4 {[%clk 0:00:23.5]} 21.
e4 {[%clk 0:01:15.1]} 21... N5f6 {[%clk 0:00:20.5]} 22. Be5 {[%clk 0:01:10]}
22... h3+ {[%clk 0:00:10.9]} 23. Kf1 {[%clk 0:01:09.2]} 23... Nxe4 {[%clk
0:00:05.8]} 24. Bxg7 {[%clk 0:01:01.9]} 24... Rh5 {[%clk 0:00:05.7]} 25. Bb2
{[%clk 0:01:01.7]} 25... Nc5 {[%clk 0:00:02.4]} 26. Rcd6 {[%clk 0:01:01.2]}
26... Kc7 {[%clk 0:00:01.7]} 27. b4 {[%clk 0:01:01.2]} 27... Na4 {[%clk
0:00:01]} 28. Rxd7+ {[%clk 0:01:00.7]} 28... Kc6 {[%clk 0:00:01.9]} 29. Bf6
{[%clk 0:01:00.1]} 29... Kb5 {[%clk 0:00:02.8]} 30. R7d4 {[%clk 0:00:55.5]}
30... Rf5 {[%clk 0:00:03.7]} 31. Be7 {[%clk 0:00:53]} 31... Rf3 {[%clk
0:00:03.9]} 32. R1d2 {[%clk 0:00:50.7]} 32... Rc3 {[%clk 0:00:04]} 33. Ke2
{[%clk 0:00:51.1]} 33... Rc1 {[%clk 0:00:04.1]} 34. Kf3 {[%clk 0:00:43.5]} 34...
Rh1 {[%clk 0:00:04.5]} 35. Kg4 {[%clk 0:00:42.3]} 35... Rxh2 {[%clk 0:00:04.8]}
36. f4 {[%clk 0:00:42.9]} 36... Rh1 {[%clk 0:00:04.3]} 37. Kg5 {[%clk
0:00:37.6]} 37... Nc3 {[%clk 0:00:04.6]} 38. Kf6 {[%clk 0:00:36.1]} 38... Nb1
{[%clk 0:00:03.7]} 39. Rc2 {[%clk 0:00:32.3]} 39... Na3 {[%clk 0:00:03.3]} 40.
Re2 {[%clk 0:00:30.8]} 40... Nc4 {[%clk 0:00:03.2]} 41. Re5+ {[%clk 0:00:28.6]}
41... Nxe5 {[%clk 0:00:02.9]} 42. fxe5 {[%clk 0:00:29.5]} 42... Rf1+ {[%clk
0:00:02.4]} 43. Kg7 {[%clk 0:00:30.1]} 43... h2 {[%clk 0:00:03.3]} 44. Bf6
{[%clk 0:00:29]} 44... h1=Q {[%clk 0:00:02.3]} 45. Kxf7 {[%clk 0:00:29.9]} 45...
Qc6 {[%clk 0:00:02.1]} 46. Rd6 {[%clk 0:00:29.6]} 46... Qc7+ {[%clk 0:00:02.3]}
47. Kxe6 {[%clk 0:00:30.5]} 47... Rxf6+ {[%clk 0:00:02.2]} 48. Kxf6 {[%clk
0:00:30.3]} 48... Kxb4 {[%clk 0:00:03.1]} 49. Rd4+ {[%clk 0:00:28.2]} 49... Kc3
{[%clk 0:00:02.8]} 50. Rf4 {[%clk 0:00:29.1]} 50... Qd8+ {[%clk 0:00:02.1]} 51.
Kf5 {[%clk 0:00:30]} 51... Qe7 {[%clk 0:00:02.3]} 52. Ke4 {[%clk 0:00:30.9]}
52... b5 {[%clk 0:00:02.4]} 53. Rf3+ {[%clk 0:00:31.8]} 53... Kd2 {[%clk
0:00:02.1]} 54. Rd3+ {[%clk 0:00:32.7]} 54... Kc2 {[%clk 0:00:02.4]} 55. Rf3
{[%clk 0:00:33.6]} 55... b4 {[%clk 0:00:02.9]} 56. Rd3 {[%clk 0:00:34.4]} 56...
Kb1 {[%clk 0:00:03.4]} 57. Rd2 {[%clk 0:00:34.1]} 57... Kc1 {[%clk 0:00:03.5]}
58. Re2 {[%clk 0:00:35]} 58... a5 {[%clk 0:00:04.1]} 59. Re3 {[%clk 0:00:35.7]}
59... a4 {[%clk 0:00:04.4]} 60. Re1+ {[%clk 0:00:36.4]} 60... Kd2 {[%clk
0:00:04.8]} 61. Re3 {[%clk 0:00:36.6]} 61... Kc2 {[%clk 0:00:04.3]} 62. Kf3
{[%clk 0:00:37.5]} 62... b3 {[%clk 0:00:04.4]} 63. Re2+ {[%clk 0:00:38.4]} 63...
Kd3 {[%clk 0:00:04.2]} 64. axb3 {[%clk 0:00:39.3]} 64... axb3 {[%clk 0:00:04.2]}
65. Re3+ {[%clk 0:00:40.2]} 65... Kc4 {[%clk 0:00:04.4]} 66. Re4+ {[%clk
0:00:40]} 66... Kb5 {[%clk 0:00:04.4]} 67. Re3 {[%clk 0:00:40.9]} 67... b2
{[%clk 0:00:04.4]} 68. Rb3+ {[%clk 0:00:40.9]} 68... Kc4 {[%clk 0:00:05]} 69.
Rxb2 {[%clk 0:00:40.9]} 69... Qxe5 {[%clk 0:00:05.4]} 70. Rc2+ {[%clk
0:00:41.8]} 70... Kd3 {[%clk 0:00:05.5]} 71. Re2 {[%clk 0:00:42.7]} 71... Qxe2+
{[%clk 0:00:05.4]} 72. Kf4 {[%clk 0:00:43.4]} 72... Qe4+ {[%clk 0:00:06.3]} 73.
Kg5 {[%clk 0:00:44.2]} 73... Ke3 {[%clk 0:00:07.2]} 74. g4 {[%clk 0:00:44.9]}
74... Kf3 {[%clk 0:00:08.1]} 75. Kh5 {[%clk 0:00:45.2]} 75... Qxg4+ {[%clk
0:00:09]} 76. Kh6 {[%clk 0:00:45.1]} 76... Kf4 {[%clk 0:00:09.9]} 0-1

[Event "*** Titled Tuesday Blitz"]
[Site "Chess.com"]
[Date "2020.12.29"]
[Round "6"]
[White "Harry_Rakkel"]
[Black "No_t_ime_to_die"]
[Result "0-1"]
[WhiteElo "2629"]
[BlackElo "2488"]
[TimeControl "180+1"]
[EndTime "11:07:12 PST"]
[Termination "No_t_ime_to_die won on time"]

1. d4 {[%clk 0:03:00.9]} 1... Nf6 {[%clk 0:02:58.4]} 2. c4 {[%clk 0:03:00.5]}
2... e6 {[%clk 0:02:58.7]} 3. Nc3 {[%clk 0:03:00.2]} 3... Bb4 {[%clk 0:02:58.2]}
4. Nf3 {[%clk 0:02:59.5]} 4... d5 {[%clk 0:02:57.8]} 5. Qb3 {[%clk 0:02:53.4]}
5... c5 {[%clk 0:02:41.3]} 6. dxc5 {[%clk 0:02:51.6]} 6... Bxc5 {[%clk
0:02:42.2]} 7. cxd5 {[%clk 0:02:39.3]} 7... exd5 {[%clk 0:02:38]} 8. Bg5 {[%clk
0:02:24.8]} 8... O-O {[%clk 0:02:26.3]} 9. e3 {[%clk 0:02:08.6]} 9... Nc6 {[%clk
0:02:20.4]} 10. Be2 {[%clk 0:01:48]} 10... Be6 {[%clk 0:01:37.3]} 11. Qa4 {[%clk
0:01:35.1]} 11... Qb6 {[%clk 0:01:28.7]} 12. Bxf6 {[%clk 0:01:24.9]} 12... gxf6
{[%clk 0:01:29.6]} 13. Qb5 {[%clk 0:01:17.5]} 13... d4 {[%clk 0:01:22.6]} 14.
exd4 {[%clk 0:01:15.8]} 14... Nxd4 {[%clk 0:01:19.7]} 15. Nxd4 {[%clk
0:01:09.2]} 15... Bxd4 {[%clk 0:01:20.6]} 16. O-O {[%clk 0:00:52.2]} 16... Bxc3
{[%clk 0:01:11.1]} 17. bxc3 {[%clk 0:00:53.1]} 17... Qxb5 {[%clk 0:01:09.1]} 18.
Bxb5 {[%clk 0:00:54]} 18... Rac8 {[%clk 0:01:09.2]} 19. Rfc1 {[%clk 0:00:49.9]}
19... Rc5 {[%clk 0:01:08.9]} 20. Bf1 {[%clk 0:00:41.6]} 20... Rfc8 {[%clk
0:01:08.8]} 21. Rcb1 {[%clk 0:00:32.7]} 21... b6 {[%clk 0:01:06.7]} 22. a4
{[%clk 0:00:30.4]} 22... Rxc3 {[%clk 0:01:06.5]} 23. a5 {[%clk 0:00:30.1]} 23...
bxa5 {[%clk 0:01:07.2]} 24. Rxa5 {[%clk 0:00:28.5]} 24... Rc1 {[%clk 0:01:07.8]}
25. Rba1 {[%clk 0:00:16.9]} 25... Rxa1 {[%clk 0:01:03.9]} 26. Rxa1 {[%clk
0:00:15.7]} 26... Rc7 {[%clk 0:00:59.5]} 27. f3 {[%clk 0:00:14.3]} 27... Kf8
{[%clk 0:00:59.8]} 28. Kf2 {[%clk 0:00:14.4]} 28... Ke7 {[%clk 0:01:00.5]} 29.
Bd3 {[%clk 0:00:14.5]} 29... h6 {[%clk 0:00:59.9]} 30. Kg3 {[%clk 0:00:14.4]}
30... Rd7 {[%clk 0:00:54.1]} 31. Bb5 {[%clk 0:00:12.6]} 31... Rb7 {[%clk
0:00:54.1]} 32. Bd3 {[%clk 0:00:13]} 32... Kd6 {[%clk 0:00:51.3]} 33. Kh4 {[%clk
0:00:12.2]} 33... Kc5 {[%clk 0:00:43.5]} 34. Kh5 {[%clk 0:00:11.3]} 34... Kb4
{[%clk 0:00:43.9]} 35. Kxh6 {[%clk 0:00:10.5]} 35... a5 {[%clk 0:00:43]} 36. h4
{[%clk 0:00:09.7]} 36... a4 {[%clk 0:00:43.3]} 37. h5 {[%clk 0:00:09.8]} 37...
a3 {[%clk 0:00:43.3]} 38. Kg7 {[%clk 0:00:08.4]} 38... a2 {[%clk 0:00:42.5]} 39.
h6 {[%clk 0:00:08.1]} 39... Kb3 {[%clk 0:00:42.6]} 40. Bb1 {[%clk 0:00:07.8]}
40... Kb2 {[%clk 0:00:39.7]} 41. Rxa2+ {[%clk 0:00:07.7]} 41... Kxb1 {[%clk
0:00:31.1]} 42. Ra8 {[%clk 0:00:06.6]} 42... Bf5 {[%clk 0:00:31.2]} 43. Kxf6
{[%clk 0:00:06.2]} 43... Bg6 {[%clk 0:00:30.7]} 44. f4 {[%clk 0:00:05.5]} 44...
Rb4 {[%clk 0:00:26.7]} 45. f5 {[%clk 0:00:05]} 45... Rf4 {[%clk 0:00:27.4]} 46.
Ra5 {[%clk 0:00:05.1]} 46... Kc2 {[%clk 0:00:27]} 47. Kg5 {[%clk 0:00:05.2]}
47... Rf2 {[%clk 0:00:23.1]} 48. fxg6 {[%clk 0:00:04.7]} 48... Rxg2+ {[%clk
0:00:23.8]} 49. Kh4 {[%clk 0:00:04.1]} 49... Rh2+ {[%clk 0:00:17.9]} 50. Kg5
{[%clk 0:00:03.6]} 50... Rg2+ {[%clk 0:00:18.1]} 51. Kf4 {[%clk 0:00:03.7]}
51... fxg6 {[%clk 0:00:14.8]} 52. h7 {[%clk 0:00:03.7]} 52... Rh2 {[%clk
0:00:15.3]} 53. Ra7 {[%clk 0:00:04]} 53... Kd3 {[%clk 0:00:15.9]} 54. Kg5 {[%clk
0:00:04.2]} 54... Ke4 {[%clk 0:00:16.4]} 55. Kxg6 {[%clk 0:00:04.3]} 55... Ke5
{[%clk 0:00:15.8]} 56. Kg7 {[%clk 0:00:04.2]} 56... Rg2+ {[%clk 0:00:15.5]} 57.
Kf8 {[%clk 0:00:04.2]} 57... Rf2+ {[%clk 0:00:15.8]} 58. Rf7 {[%clk 0:00:04.2]}
58... Rh2 {[%clk 0:00:15.5]} 59. Kg8 {[%clk 0:00:04.2]} 59... Ke6 {[%clk
0:00:15.8]} 60. Rg7 {[%clk 0:00:03.9]} 60... Ra2 {[%clk 0:00:13.2]} 61. Rg6+
{[%clk 0:00:03.5]} 61... Kf5 {[%clk 0:00:13.7]} 0-1

[Event "*** Titled Tuesday Blitz"]
[Site "Chess.com"]
[Date "2020.12.29"]
[Round "6"]
[White "Keks2017"]
[Black "Lady_Nika"]
[Result "0-1"]
[WhiteElo "2549"]
[BlackElo "2330"]
[TimeControl "180+1"]
[EndTime "11:07:12 PST"]
[Termination "Lady_Nika won on time"]

1. g3 {[%clk 0:02:59.6]} 1... d5 {[%clk 0:02:59.8]} 2. Bg2 {[%clk 0:02:59.2]}
2... e6 {[%clk 0:03:00.4]} 3. Nf3 {[%clk 0:02:57.8]} 3... f5 {[%clk 0:03:01]} 4.
O-O {[%clk 0:02:57.1]} 4... Nf6 {[%clk 0:03:01.6]} 5. d3 {[%clk 0:02:56.9]} 5...
Be7 {[%clk 0:03:01.8]} 6. c4 {[%clk 0:02:56.3]} 6... O-O {[%clk 0:03:01.8]} 7.
Nc3 {[%clk 0:02:55.8]} 7... c6 {[%clk 0:03:02.1]} 8. cxd5 {[%clk 0:02:55.1]}
8... exd5 {[%clk 0:03:01.5]} 9. e4 {[%clk 0:02:54.8]} 9... fxe4 {[%clk
0:02:57.8]} 10. dxe4 {[%clk 0:02:53.9]} 10... dxe4 {[%clk 0:02:49.7]} 11. Qb3+
{[%clk 0:02:52.1]} 11... Nd5 {[%clk 0:02:47.9]} 12. Nxe4 {[%clk 0:02:49.8]}
12... Na6 {[%clk 0:02:46.7]} 13. Be3 {[%clk 0:02:29.4]} 13... Nc7 {[%clk
0:02:41.7]} 14. Rad1 {[%clk 0:02:26.3]} 14... Kh8 {[%clk 0:02:36.6]} 15. Bd4
{[%clk 0:02:24.4]} 15... Qe8 {[%clk 0:02:35.1]} 16. Nc5 {[%clk 0:02:14.9]} 16...
b6 {[%clk 0:02:32.9]} 17. Nd3 {[%clk 0:02:13.5]} 17... Bg4 {[%clk 0:02:32.4]}
18. Nde5 {[%clk 0:02:11.9]} 18... Bxf3 {[%clk 0:02:28.4]} 19. Nxf3 {[%clk
0:02:10.8]} 19... c5 {[%clk 0:02:24.2]} 20. Be5 {[%clk 0:02:09.6]} 20... Rd8
{[%clk 0:02:24.2]} 21. Nd2 {[%clk 0:01:49.8]} 21... Bf6 {[%clk 0:02:14.4]} 22.
Bxf6 {[%clk 0:01:46.5]} 22... Nxf6 {[%clk 0:02:12.6]} 23. Nc4 {[%clk 0:01:45]}
23... Qh5 {[%clk 0:02:07.3]} 24. Nd6 {[%clk 0:01:30.8]} 24... h6 {[%clk
0:02:04.7]} 25. h3 {[%clk 0:01:28.2]} 25... Kh7 {[%clk 0:01:54.3]} 26. Rfe1
{[%clk 0:01:20.7]} 26... Rd7 {[%clk 0:01:45.7]} 27. Ne4 {[%clk 0:00:59.9]} 27...
Rxd1 {[%clk 0:01:34.3]} 28. Qxd1 {[%clk 0:00:56.1]} 28... Qxd1 {[%clk
0:01:30.8]} 29. Rxd1 {[%clk 0:00:55.5]} 29... Rf7 {[%clk 0:01:25.3]} 30. Nxf6+
{[%clk 0:00:52]} 30... gxf6 {[%clk 0:01:25.1]} 31. h4 {[%clk 0:00:50]} 31... f5
{[%clk 0:01:24.1]} 32. h5 {[%clk 0:00:43.7]} 32... Ne8 {[%clk 0:01:22.2]} 33.
Bf3 {[%clk 0:00:37.7]} 33... Re7 {[%clk 0:01:20]} 34. Kg2 {[%clk 0:00:35.2]}
34... Nf6 {[%clk 0:01:17.7]} 35. Rd6 {[%clk 0:00:33.2]} 35... Kg7 {[%clk
0:01:17.5]} 36. a3 {[%clk 0:00:31.7]} 36... Kf7 {[%clk 0:01:14.5]} 37. Rc6
{[%clk 0:00:29.3]} 37... Kg7 {[%clk 0:01:14.1]} 38. b4 {[%clk 0:00:27.8]} 38...
cxb4 {[%clk 0:01:13.1]} 39. axb4 {[%clk 0:00:27.4]} 39... Kf7 {[%clk 0:00:56.8]}
40. Bd1 {[%clk 0:00:24.2]} 40... Kg7 {[%clk 0:00:55.5]} 41. Bc2 {[%clk
0:00:22.7]} 41... Nxh5 {[%clk 0:00:55.4]} 42. Bxf5 {[%clk 0:00:21.5]} 42... Nf6
{[%clk 0:00:55.8]} 43. Bd3 {[%clk 0:00:18.5]} 43... Rd7 {[%clk 0:00:55]} 44. Bf1
{[%clk 0:00:17.2]} 44... Re7 {[%clk 0:00:54.5]} 45. b5 {[%clk 0:00:16.4]} 45...
Nd5 {[%clk 0:00:52]} 46. Bc4 {[%clk 0:00:13.8]} 46... Nb4 {[%clk 0:00:51.2]} 47.
Rd6 {[%clk 0:00:12.1]} 47... Rc7 {[%clk 0:00:46.4]} 48. Be2 {[%clk 0:00:10.8]}
48... Nc2 {[%clk 0:00:45.7]} 49. g4 {[%clk 0:00:09.7]} 49... Re7 {[%clk
0:00:44.5]} 50. Bf1 {[%clk 0:00:08.6]} 50... Ne1+ {[%clk 0:00:43.4]} 51. Kg3
{[%clk 0:00:07.7]} 51... Nc2 {[%clk 0:00:42.7]} 52. Bd3 {[%clk 0:00:07]} 52...
Nb4 {[%clk 0:00:41.8]} 53. Bf5 {[%clk 0:00:06.3]} 53... Rf7 {[%clk 0:00:37.2]}
54. Kh4 {[%clk 0:00:05.5]} 54... Rf6 {[%clk 0:00:35.5]} 55. Rd7+ {[%clk
0:00:04.4]} 55... Rf7 {[%clk 0:00:35.9]} 56. Rd4 {[%clk 0:00:03.6]} 56... Na2
{[%clk 0:00:34.2]} 57. Kh5 {[%clk 0:00:02.9]} 57... Nc3 {[%clk 0:00:34.4]} 58.
Rd6 {[%clk 0:00:02]} 58... Nxb5 {[%clk 0:00:34.1]} 59. Rg6+ {[%clk 0:00:01.3]}
59... Kf8 {[%clk 0:00:33.7]} 60. Rxh6 {[%clk 0:00:02.2]} 60... Nd4 {[%clk
0:00:33.9]} 61. Rh8+ {[%clk 0:00:02.6]} 61... Ke7 {[%clk 0:00:33.9]} 62. Ra8
{[%clk 0:00:02.6]} 62... Nxf5 {[%clk 0:00:33.2]} 63. Rxa7+ {[%clk 0:00:03.3]}
63... Kf6 {[%clk 0:00:33.5]} 64. Ra6 {[%clk 0:00:01.5]} 64... Ng7+ {[%clk
0:00:32.8]} 0-1

[Event "*** Titled Tuesday Blitz"]
[Site "Chess.com"]
[Date "2020.12.29"]
[Round "6"]
[White "ShahMatKanal"]
[Black "DavidEgglestonIM"]
[Result "1/2-1/2"]
[WhiteElo "2444"]
[BlackElo "2582"]
[TimeControl "180+1"]
[EndTime "11:07:13 PST"]
[Termination "Game drawn by stalemate"]

1. d4 {[%clk 0:03:00.9]} 1... Nf6 {[%clk 0:02:56.6]} 2. c4 {[%clk 0:03:00.8]}
2... e6 {[%clk 0:02:56.4]} 3. a3 {[%clk 0:02:59.1]} 3... d5 {[%clk 0:02:54.9]}
4. cxd5 {[%clk 0:02:59.6]} 4... exd5 {[%clk 0:02:54.6]} 5. Nc3 {[%clk
0:03:00.5]} 5... c6 {[%clk 0:02:53]} 6. Bg5 {[%clk 0:03:00]} 6... Bf5 {[%clk
0:02:52.3]} 7. e3 {[%clk 0:02:43.2]} 7... Nbd7 {[%clk 0:02:50.1]} 8. Bd3 {[%clk
0:02:41.8]} 8... Bxd3 {[%clk 0:02:49.7]} 9. Qxd3 {[%clk 0:02:42.7]} 9... g6
{[%clk 0:02:47.3]} 10. Nf3 {[%clk 0:02:37]} 10... Bg7 {[%clk 0:02:47.1]} 11. O-O
{[%clk 0:02:34]} 11... O-O {[%clk 0:02:46.9]} 12. Ne5 {[%clk 0:02:32.1]} 12...
Re8 {[%clk 0:02:44.2]} 13. f4 {[%clk 0:02:29.2]} 13... Qb6 {[%clk 0:02:38.5]}
14. b4 {[%clk 0:02:02.9]} 14... a5 {[%clk 0:02:33.2]} 15. Na4 {[%clk 0:02:01]}
15... Qa6 {[%clk 0:02:31.7]} 16. Qxa6 {[%clk 0:01:56.7]} 16... Rxa6 {[%clk
0:02:30.9]} 17. Nc5 {[%clk 0:01:56.9]} 17... Nxc5 {[%clk 0:02:28]} 18. bxc5
{[%clk 0:01:47.2]} 18... Ne4 {[%clk 0:02:27.4]} 19. Bh4 {[%clk 0:01:45.6]} 19...
f6 {[%clk 0:02:08.5]} 20. Nd7 {[%clk 0:01:38.3]} 20... Nd2 {[%clk 0:02:01.2]}
21. Rfe1 {[%clk 0:01:28.5]} 21... Kf7 {[%clk 0:01:53.6]} 22. Nb6 {[%clk
0:01:24.3]} 22... a4 {[%clk 0:01:44.8]} 23. Ra2 {[%clk 0:01:13.8]} 23... Nb3
{[%clk 0:01:40.3]} 24. Rb2 {[%clk 0:01:11.2]} 24... g5 {[%clk 0:01:19.1]} 25.
fxg5 {[%clk 0:01:05.7]} 25... fxg5 {[%clk 0:01:18.2]} 26. Bf2 {[%clk 0:01:00.1]}
26... Na5 {[%clk 0:00:58.5]} 27. Nxa4 {[%clk 0:00:54.2]} 27... Re7 {[%clk
0:00:51.9]} 28. Nb6 {[%clk 0:00:40.5]} 28... Kg6 {[%clk 0:00:51.7]} 29. Nc8
{[%clk 0:00:36.9]} 29... Rd7 {[%clk 0:00:47.8]} 30. Nd6 {[%clk 0:00:36.8]} 30...
Ra7 {[%clk 0:00:47]} 31. e4 {[%clk 0:00:31.2]} 31... dxe4 {[%clk 0:00:46.4]} 32.
Rxe4 {[%clk 0:00:32.1]} 32... h5 {[%clk 0:00:45.2]} 33. Re6+ {[%clk 0:00:28.5]}
33... Kh7 {[%clk 0:00:44.7]} 34. h4 {[%clk 0:00:23.8]} 34... gxh4 {[%clk
0:00:44]} 35. Rbe2 {[%clk 0:00:22.5]} 35... Nb3 {[%clk 0:00:39.2]} 36. R2e4
{[%clk 0:00:21.9]} 36... Rxa3 {[%clk 0:00:36.2]} 37. Rxh4 {[%clk 0:00:22]} 37...
Ra8 {[%clk 0:00:24.4]} 38. Rxh5+ {[%clk 0:00:21.2]} 38... Kg8 {[%clk 0:00:23.9]}
39. Nf5 {[%clk 0:00:19.6]} 39... Re8 {[%clk 0:00:14]} 40. Rxe8+ {[%clk
0:00:18.7]} 40... Kf7 {[%clk 0:00:11.6]} 41. Nd6+ {[%clk 0:00:14.4]} 41... Rxd6
{[%clk 0:00:09.5]} 42. cxd6 {[%clk 0:00:15.3]} 42... Kxe8 {[%clk 0:00:09.7]} 43.
Rh7 {[%clk 0:00:14.2]} 43... Bxd4 {[%clk 0:00:06.9]} 44. Re7+ {[%clk 0:00:08.2]}
44... Kd8 {[%clk 0:00:06.4]} 45. Rxb7 {[%clk 0:00:09.1]} 45... Bxf2+ {[%clk
0:00:05.6]} 46. Kxf2 {[%clk 0:00:10]} 46... Nc5 {[%clk 0:00:05.4]} 47. Rc7
{[%clk 0:00:08.5]} 47... Ne4+ {[%clk 0:00:05.3]} 48. Kf3 {[%clk 0:00:07.5]}
48... Nxd6 {[%clk 0:00:06.1]} 49. Rxc6 {[%clk 0:00:07.8]} 49... Kd7 {[%clk
0:00:06.7]} 50. Rxd6+ {[%clk 0:00:06.8]} 50... Kxd6 {[%clk 0:00:06.7]} 51. Kf4
{[%clk 0:00:07.7]} 51... Ke6 {[%clk 0:00:06.8]} 52. Kg5 {[%clk 0:00:08.2]} 52...
Kf7 {[%clk 0:00:06.9]} 53. Kh6 {[%clk 0:00:08]} 53... Kf6 {[%clk 0:00:06.5]} 54.
g4 {[%clk 0:00:08.2]} 54... Kf7 {[%clk 0:00:06.5]} 55. g5 {[%clk 0:00:07.7]}
55... Kg8 {[%clk 0:00:07.1]} 56. Kg6 {[%clk 0:00:08]} 56... Kh8 {[%clk
0:00:07.5]} 57. Kh6 {[%clk 0:00:07.7]} 57... Kg8 {[%clk 0:00:07.2]} 58. g6
{[%clk 0:00:08.3]} 58... Kh8 {[%clk 0:00:07.2]} 59. g7+ {[%clk 0:00:06.7]} 59...
Kg8 {[%clk 0:00:07]} 60. Kg6 {[%clk 0:00:04.6]} 1/2-1/2

[Event "*** Titled Tuesday Blitz"]
[Site "Chess.com"]
[Date "2020.12.29"]
[Round "6"]
[White "Itk04"]
[Black "Chernov_Alexander_A"]
[Result "0-1"]
[WhiteElo "2453"]
[BlackElo "2318"]
[TimeControl "180+1"]
[EndTime "11:07:13 PST"]
[Termination "Chernov_Alexander_A won by resignation"]

1. e4 {[%clk 0:03:00.9]} 1... e5 {[%clk 0:02:59.3]} 2. Nf3 {[%clk 0:03:01.3]}
2... Nc6 {[%clk 0:02:59.3]} 3. Bb5 {[%clk 0:03:01.7]} 3... Bc5 {[%clk
0:02:59.2]} 4. O-O {[%clk 0:03:01]} 4... Nd4 {[%clk 0:02:59.3]} 5. Nxd4 {[%clk
0:03:00.7]} 5... Bxd4 {[%clk 0:02:59.5]} 6. c3 {[%clk 0:03:01.2]} 6... Bb6
{[%clk 0:03:00]} 7. d4 {[%clk 0:03:01.8]} 7... c6 {[%clk 0:03:00.3]} 8. Ba4
{[%clk 0:02:54.9]} 8... d6 {[%clk 0:02:59.9]} 9. dxe5 {[%clk 0:02:37.8]} 9...
dxe5 {[%clk 0:02:59]} 10. Qxd8+ {[%clk 0:02:36.5]} 10... Bxd8 {[%clk 0:02:58.8]}
11. Be3 {[%clk 0:02:36.5]} 11... Bb6 {[%clk 0:02:58.6]} 12. Bxb6 {[%clk
0:02:31.2]} 12... axb6 {[%clk 0:02:57.9]} 13. Bb3 {[%clk 0:02:31.7]} 13... Nf6
{[%clk 0:02:55]} 14. Nd2 {[%clk 0:02:31.2]} 14... Ke7 {[%clk 0:02:50.2]} 15. f3
{[%clk 0:02:30.3]} 15... Be6 {[%clk 0:02:47]} 16. Bxe6 {[%clk 0:02:26.1]} 16...
Kxe6 {[%clk 0:02:46.4]} 17. Nc4 {[%clk 0:02:27]} 17... b5 {[%clk 0:02:44.4]} 18.
Ne3 {[%clk 0:02:27.4]} 18... g6 {[%clk 0:02:42.9]} 19. Rfd1 {[%clk 0:02:25.5]}
19... Rhd8 {[%clk 0:02:41.7]} 20. a3 {[%clk 0:02:26.1]} 20... Nd7 {[%clk
0:02:16.8]} 21. Kf2 {[%clk 0:02:18.1]} 21... Nc5 {[%clk 0:02:15.3]} 22. Ke2
{[%clk 0:02:18.6]} 22... Na4 {[%clk 0:02:13]} 23. Rxd8 {[%clk 0:02:12.4]} 23...
Rxd8 {[%clk 0:02:11.1]} 24. Rd1 {[%clk 0:02:12.6]} 24... Rxd1 {[%clk 0:02:06]}
25. Nxd1 {[%clk 0:02:13.5]} 25... f5 {[%clk 0:02:05.7]} 26. exf5+ {[%clk
0:02:08.2]} 26... gxf5 {[%clk 0:02:05.1]} 27. Kd2 {[%clk 0:02:03.3]} 27... h5
{[%clk 0:02:03.5]} 28. b3 {[%clk 0:01:56.2]} 28... Nb6 {[%clk 0:01:59.7]} 29.
Nf2 {[%clk 0:01:53.5]} 29... Nd5 {[%clk 0:01:55.5]} 30. Nd3 {[%clk 0:01:53.3]}
30... b6 {[%clk 0:01:50.5]} 31. Nb4 {[%clk 0:01:36.2]} 31... Kd6 {[%clk
0:01:32.3]} 32. g3 {[%clk 0:01:15.9]} 32... Nf6 {[%clk 0:01:14]} 33. Ke3 {[%clk
0:01:09.1]} 33... c5 {[%clk 0:01:01.1]} 34. Nd3 {[%clk 0:00:59.8]} 34... Nd5+
{[%clk 0:00:58.6]} 35. Kd2 {[%clk 0:00:59.4]} 35... c4 {[%clk 0:00:55.1]} 36.
bxc4 {[%clk 0:00:54.2]} 36... bxc4 {[%clk 0:00:54.8]} 37. Nb4 {[%clk 0:00:36.6]}
37... Nxb4 {[%clk 0:00:52.5]} 38. axb4 {[%clk 0:00:37.5]} 38... Kc6 {[%clk
0:00:43.9]} 39. Ke3 {[%clk 0:00:31.6]} 39... Kb5 {[%clk 0:00:40.5]} 40. h3
{[%clk 0:00:29.8]} 40... Ka4 {[%clk 0:00:31.8]} 41. g4 {[%clk 0:00:29.2]} 41...
fxg4 {[%clk 0:00:24.6]} 42. fxg4 {[%clk 0:00:27.4]} 42... hxg4 {[%clk
0:00:22.2]} 43. hxg4 {[%clk 0:00:28.3]} 43... Kb3 {[%clk 0:00:22.4]} 44. Kd2
{[%clk 0:00:19.7]} 44... e4 {[%clk 0:00:21.5]} 45. g5 {[%clk 0:00:19.5]} 45...
e3+ {[%clk 0:00:21.5]} 46. Kxe3 {[%clk 0:00:19.2]} 46... Kxc3 {[%clk 0:00:21.4]}
47. g6 {[%clk 0:00:19.8]} 47... Kb2 {[%clk 0:00:18.5]} 48. g7 {[%clk 0:00:20.7]}
48... c3 {[%clk 0:00:18.6]} 49. g8=Q {[%clk 0:00:21.6]} 49... c2 {[%clk
0:00:18.4]} 50. Qg7+ {[%clk 0:00:21.7]} 50... Kb1 {[%clk 0:00:18.1]} 51. Qg6
{[%clk 0:00:22.1]} 51... Kb2 {[%clk 0:00:18.1]} 52. Qf6+ {[%clk 0:00:22.5]}
52... Kb1 {[%clk 0:00:17.7]} 53. Qf5 {[%clk 0:00:23.1]} 53... Kb2 {[%clk
0:00:17.3]} 54. Qe5+ {[%clk 0:00:23.7]} 54... Kb1 {[%clk 0:00:17.3]} 55. Qe4
{[%clk 0:00:24.3]} 55... Kb2 {[%clk 0:00:17.2]} 56. Qd4+ {[%clk 0:00:24.5]}
56... Kb1 {[%clk 0:00:17]} 57. Qd3 {[%clk 0:00:20.2]} 57... Kb2 {[%clk
0:00:16.2]} 58. Qd2 {[%clk 0:00:14.8]} 58... Kb1 {[%clk 0:00:15.2]} 59. Qd3
{[%clk 0:00:14.3]} 59... Kb2 {[%clk 0:00:14.6]} 60. Qd4+ {[%clk 0:00:14.7]}
60... Kb1 {[%clk 0:00:14.3]} 61. Qxb6 {[%clk 0:00:12.4]} 61... c1=Q+ {[%clk
0:00:13.2]} 62. Kd4 {[%clk 0:00:12.6]} 62... Qg1+ {[%clk 0:00:12.3]} 63. Kc4
{[%clk 0:00:07]} 63... Qxb6 {[%clk 0:00:12.6]} 0-1